[Event "Titled Tuesday Blitz May 4 2021"]
[White "Eynullayev, Atilla"]
[Black "Hasangatin, Ramil"]
[WhiteFideId "13413570"]
[BlackFideId "4122160"]
[WhiteElo "1997"]
[BlackElo "2430"]
[Result "1-0"]
[Round "06"]
[TimeControl "180+1"]
[Date "2021.05.04"]
[WhiteClock "0:00:31"]
[BlackClock "0:01:04"]

1. e4 {[%clk 0:03:00]}  d5 {[%clk 0:02:59]} 2. exd5 {[%clk 0:03:00]}  Qxd5 {[%clk 0:03:00]} 3. Nc3 {[%clk 0:03:01]}  Qd6 {[%clk 0:03:00]} 4. d4 {[%clk 0:03:01]}  Nf6 {[%clk 0:03:01]} 5. Nf3 {[%clk 0:02:58]}  c6 {[%clk 0:03:01]} 6. h3 {[%clk 0:02:58]}  Bf5 {[%clk 0:03:01]} 7. Bc4 {[%clk 0:02:56]}  Nbd7 {[%clk 0:02:57]} 8. O-O {[%clk 0:02:55]}  e6 {[%clk 0:02:57]} 9. Ne2 {[%clk 0:02:51]}  Qc7 {[%clk 0:02:56]} 10. Bf4 {[%clk 0:02:52]}  Bd6 {[%clk 0:02:55]} 11. Bxd6 {[%clk 0:02:49]}  Qxd6 {[%clk 0:02:56]} 12. c3 {[%clk 0:02:49]}  O-O {[%clk 0:02:56]} 13. Ng3 {[%clk 0:02:46]}  Bg6 {[%clk 0:02:55]} 14. Re1 {[%clk 0:02:47]}  Rad8 {[%clk 0:02:54]} 15. Qe2 {[%clk 0:02:45]}  Qc7 {[%clk 0:02:53]} 16. Rad1 {[%clk 0:02:44]}  Nd5 {[%clk 0:02:53]} 17. Bb3 {[%clk 0:02:27]}  b5 {[%clk 0:02:52]} 18. c4 {[%clk 0:01:55]}  bxc4 {[%clk 0:02:51]} 19. Qxc4 {[%clk 0:01:54]}  N7b6 {[%clk 0:02:47]} 20. Qe2 {[%clk 0:01:37]}  Nd7 {[%clk 0:02:43]} 21. Nh4 {[%clk 0:01:27]}  Rc8 {[%clk 0:02:42]} 22. Nxg6 {[%clk 0:01:27]}  hxg6 {[%clk 0:02:41]} 23. Rc1 {[%clk 0:01:27]}  Qb6 {[%clk 0:02:39]} 24. Red1 {[%clk 0:01:24]}  N7f6 {[%clk 0:02:36]} 25. Nf1 {[%clk 0:01:19]}  Rfd8 {[%clk 0:02:36]} 26. Nh2 {[%clk 0:01:19]}  c5 {[%clk 0:02:31]} 27. Nf3 {[%clk 0:01:18]}  cxd4 {[%clk 0:02:30]} 28. Rxc8 {[%clk 0:01:18]}  Rxc8 {[%clk 0:02:31]} 29. Nxd4 {[%clk 0:01:18]}  Rd8 {[%clk 0:02:24]} 30. Qb5 {[%clk 0:01:10]}  Nf4 {[%clk 0:02:12]} 31. Qxb6 {[%clk 0:01:09]}  axb6 {[%clk 0:02:13]} 32. Kf1 {[%clk 0:01:08]}  e5 {[%clk 0:02:04]} 33. Nc6 {[%clk 0:01:06]}  Rxd1+ {[%clk 0:02:04]} 34. Bxd1 {[%clk 0:01:06]}  e4 {[%clk 0:02:04]} 35. h4 {[%clk 0:01:02]}  Nd3 {[%clk 0:02:02]} 36. b4 {[%clk 0:00:57]}  Nd5 {[%clk 0:02:02]} 37. a3 {[%clk 0:00:53]}  Kf8 {[%clk 0:01:57]} 38. Bc2 {[%clk 0:00:50]}  Nc3 {[%clk 0:01:53]} 39. Bxd3 {[%clk 0:00:40]}  exd3 {[%clk 0:01:54]} 40. Ke1 {[%clk 0:00:41]}  Ke8 {[%clk 0:01:40]} 41. Kd2 {[%clk 0:00:40]}  Nb1+ {[%clk 0:01:40]} 42. Kxd3 {[%clk 0:00:40]}  Nxa3 {[%clk 0:01:41]} 43. Nd4 {[%clk 0:00:40]}  b5 {[%clk 0:01:36]} 44. Ke4 {[%clk 0:00:38]}  Kd7 {[%clk 0:01:31]} 45. Kd5 {[%clk 0:00:38]}  Nb1 {[%clk 0:01:20]} 46. Nxb5 {[%clk 0:00:37]}  Nd2 {[%clk 0:01:20]} 47. Nd4 {[%clk 0:00:36]}  Nb1 {[%clk 0:01:18]} 48. Kc4 {[%clk 0:00:34]}  Nd2+ {[%clk 0:01:12]} 49. Kd3 {[%clk 0:00:33]}  Nf1 {[%clk 0:01:11]} 50. Ke2 {[%clk 0:00:30]}  Nh2 {[%clk 0:01:10]} 51. f3 {[%clk 0:00:30]}  f6 {[%clk 0:01:03]} 52. Kf2 {[%clk 0:00:31]}  g5 {[%clk 0:01:03]} 53. hxg5 {[%clk 0:00:30]}  fxg5 {[%clk 0:01:04]} 54. Kg1 {[%clk 0:00:31]} 1-0


[Site "https://www.chess.com"]

[Event "Titled Tuesday Blitz May 4 2021"]
[White "Foerster-Yialamas, Lucas"]
[Black "Berezin, Viktor"]
[WhiteFideId "30901774"]
[BlackFideId "14107872"]
[WhiteElo "1744"]
[BlackElo "2310"]
[Result "1-0"]
[Round "06"]
[TimeControl "180+1"]
[Date "2021.05.04"]
[WhiteClock "0:01:31"]
[BlackClock "0:00:41"]

1. e4 {[%clk 0:03:00]}  d5 {[%clk 0:02:59]} 2. exd5 {[%clk 0:03:00]}  Nf6 {[%clk 0:02:59]} 3. Bb5+ {[%clk 0:02:59]}  Nbd7 {[%clk 0:02:58]} 4. d4 {[%clk 0:02:56]}  g6 {[%clk 0:02:59]} 5. c4 {[%clk 0:02:52]}  Bg7 {[%clk 0:02:58]} 6. Nc3 {[%clk 0:02:52]}  O-O {[%clk 0:02:58]} 7. Nge2 {[%clk 0:02:49]}  a6 {[%clk 0:02:57]} 8. Ba4 {[%clk 0:02:48]}  Rb8 {[%clk 0:02:47]} 9. Bb3 {[%clk 0:02:46]}  b5 {[%clk 0:02:47]} 10. c5 {[%clk 0:02:46]}  a5 {[%clk 0:02:31]} 11. a3 {[%clk 0:02:43]}  b4 {[%clk 0:02:29]} 12. Na4 {[%clk 0:02:37]}  bxa3 {[%clk 0:02:23]} 13. Rxa3 {[%clk 0:02:38]}  Ba6 {[%clk 0:02:00]} 14. O-O {[%clk 0:02:37]}  Rb4 {[%clk 0:01:51]} 15. Re1 {[%clk 0:02:32]}  Qb8 {[%clk 0:01:46]} 16. Bd2 {[%clk 0:02:27]}  Bxe2 {[%clk 0:01:46]} 17. Rxe2 {[%clk 0:02:25]}  Rxd4 {[%clk 0:01:45]} 18. c6 {[%clk 0:02:23]}  Nc5 {[%clk 0:01:45]} 19. Nxc5 {[%clk 0:02:18]}  Nxd5 {[%clk 0:01:41]} 20. Nd7 {[%clk 0:02:14]}  Qb5 {[%clk 0:01:30]} 21. Nxf8 {[%clk 0:02:15]}  Nf4 {[%clk 0:01:28]} 22. Rxe7 {[%clk 0:02:08]}  Qg5 {[%clk 0:01:23]} 23. g3 {[%clk 0:02:08]}  Qxe7 {[%clk 0:01:21]} 24. gxf4 {[%clk 0:02:06]}  Bxf8 {[%clk 0:01:08]} 25. Rxa5 {[%clk 0:02:00]}  Qd8 {[%clk 0:01:06]} 26. Bxf7+ {[%clk 0:01:46]}  Kxf7 {[%clk 0:01:01]} 27. Qb3+ {[%clk 0:01:46]}  Ke7 {[%clk 0:00:49]} 28. Re5+ {[%clk 0:01:44]}  Kf6 {[%clk 0:00:48]} 29. Qe6+ {[%clk 0:01:39]}  Kg7 {[%clk 0:00:48]} 30. Bc3 {[%clk 0:01:38]}  Rd1+ {[%clk 0:00:48]} 31. Re1+ {[%clk 0:01:36]}  Kh6 {[%clk 0:00:46]} 32. Qh3+ {[%clk 0:01:30]}  Qh4 {[%clk 0:00:41]} 33. Qxh4# {[%clk 0:01:31]} 1-0


[Site "https://www.chess.com"]

[Event "Titled Tuesday Blitz May 4 2021"]
[White "Gahan, M G"]
[Black "Bluebaum, Matthias"]
[WhiteFideId "5027373"]
[BlackFideId "24651516"]
[WhiteElo "2264"]
[BlackElo "2685"]
[Result "1-0"]
[Round "06"]
[TimeControl "180+1"]
[Date "2021.05.04"]
[WhiteClock "0:00:08"]
[BlackClock "0:00:02"]

1. e4 {[%clk 0:03:00]}  c6 {[%clk 0:03:00]} 2. d4 {[%clk 0:02:58]}  d5 {[%clk 0:03:01]} 3. exd5 {[%clk 0:02:59]}  cxd5 {[%clk 0:03:02]} 4. c4 {[%clk 0:02:59]}  Nf6 {[%clk 0:03:00]} 5. Nc3 {[%clk 0:02:58]}  Nc6 {[%clk 0:03:00]} 6. Nf3 {[%clk 0:02:58]}  a6 {[%clk 0:03:01]} 7. cxd5 {[%clk 0:02:54]}  Nxd5 {[%clk 0:03:02]} 8. Bc4 {[%clk 0:02:55]}  Be6 {[%clk 0:03:00]} 9. Qe2 {[%clk 0:02:41]}  Rc8 {[%clk 0:02:45]} 10. Bb3 {[%clk 0:02:35]}  Na5 {[%clk 0:02:40]} 11. Bxd5 {[%clk 0:02:20]}  Bxd5 {[%clk 0:02:41]} 12. Nxd5 {[%clk 0:02:18]}  Qxd5 {[%clk 0:02:42]} 13. Bd2 {[%clk 0:02:14]}  Nc6 {[%clk 0:02:39]} 14. Bc3 {[%clk 0:02:12]}  e6 {[%clk 0:02:39]} 15. O-O {[%clk 0:02:12]}  Be7 {[%clk 0:02:39]} 16. Ne5 {[%clk 0:02:11]}  O-O {[%clk 0:02:40]} 17. Qf3 {[%clk 0:02:01]}  Qxf3 {[%clk 0:02:36]} 18. Nxf3 {[%clk 0:02:02]}  Rfd8 {[%clk 0:02:36]} 19. Rfd1 {[%clk 0:02:02]}  Nb4 {[%clk 0:02:22]} 20. Bxb4 {[%clk 0:01:59]}  Bxb4 {[%clk 0:02:23]} 21. Rac1 {[%clk 0:01:54]}  Rxc1 {[%clk 0:02:12]} 22. Rxc1 {[%clk 0:01:55]}  Ba5 {[%clk 0:02:13]} 23. Kf1 {[%clk 0:01:53]}  Kf8 {[%clk 0:02:12]} 24. Ke2 {[%clk 0:01:50]}  Ke7 {[%clk 0:02:12]} 25. Ke3 {[%clk 0:01:50]}  Bb6 {[%clk 0:02:12]} 26. Ke4 {[%clk 0:01:46]}  Rd5 {[%clk 0:02:08]} 27. Rc4 {[%clk 0:01:42]}  Rb5 {[%clk 0:01:50]} 28. b3 {[%clk 0:01:42]}  f6 {[%clk 0:01:45]} 29. Ne1 {[%clk 0:01:35]}  Kd7 {[%clk 0:01:43]} 30. Nc2 {[%clk 0:01:34]}  Rh5 {[%clk 0:01:43]} 31. h3 {[%clk 0:01:33]}  Rh4+ {[%clk 0:01:43]} 32. Kd3 {[%clk 0:01:31]}  Ba7 {[%clk 0:01:30]} 33. a4 {[%clk 0:01:08]}  b5 {[%clk 0:01:16]} 34. axb5 {[%clk 0:01:09]}  axb5 {[%clk 0:01:17]} 35. Rb4 {[%clk 0:01:10]}  Rh5 {[%clk 0:01:18]} 36. Ne3 {[%clk 0:01:03]}  Kc6 {[%clk 0:01:06]} 37. d5+ {[%clk 0:00:50]}  exd5 {[%clk 0:01:05]} 38. Rg4 {[%clk 0:00:49]}  g6 {[%clk 0:01:03]} 39. Rf4 {[%clk 0:00:46]}  f5 {[%clk 0:01:04]} 40. Nc2 {[%clk 0:00:38]}  Kd6 {[%clk 0:00:56]} 41. h4 {[%clk 0:00:36]}  Bb8 {[%clk 0:00:34]} 42. g3 {[%clk 0:00:35]}  Kc5 {[%clk 0:00:35]} 43. b4+ {[%clk 0:00:31]}  Kb6 {[%clk 0:00:34]} 44. Rf3 {[%clk 0:00:25]}  f4 {[%clk 0:00:32]} 45. Nd4 {[%clk 0:00:20]}  h6 {[%clk 0:00:28]} 46. gxf4 {[%clk 0:00:17]}  Rxh4 {[%clk 0:00:27]} 47. f5 {[%clk 0:00:18]}  Be5 {[%clk 0:00:22]} 48. Nc2 {[%clk 0:00:17]}  gxf5 {[%clk 0:00:16]} 49. Rxf5 {[%clk 0:00:18]}  Bd6 {[%clk 0:00:16]} 50. Rxd5 {[%clk 0:00:17]}  Kc6 {[%clk 0:00:10]} 51. Rd4 {[%clk 0:00:16]}  Rh3+ {[%clk 0:00:09]} 52. Ke2 {[%clk 0:00:13]}  h5 {[%clk 0:00:09]} 53. Re4 {[%clk 0:00:11]}  Kd5 {[%clk 0:00:08]} 54. Re8 {[%clk 0:00:10]}  Rb3 {[%clk 0:00:06]} 55. Rh8 {[%clk 0:00:09]}  Rh3 {[%clk 0:00:04]} 56. Ne3+ {[%clk 0:00:08]}  Kc6 {[%clk 0:00:04]} 57. Rh6 {[%clk 0:00:07]}  Kd7 {[%clk 0:00:05]} 58. Nc2 {[%clk 0:00:04]}  Rh4 {[%clk 0:00:03]} 59. Kd3 {[%clk 0:00:04]}  Bf8 {[%clk 0:00:03]} 60. Rh7+ {[%clk 0:00:04]}  Ke6 {[%clk 0:00:02]} 61. Nd4+ {[%clk 0:00:03]}  Kf6 {[%clk 0:00:03]} 62. Nxb5 {[%clk 0:00:04]}  Bxb4 {[%clk 0:00:03]} 63. Nd4 {[%clk 0:00:04]}  Bc5 {[%clk 0:00:04]} 64. Nf3 {[%clk 0:00:03]}  Rf4 {[%clk 0:00:03]} 65. Ke2 {[%clk 0:00:04]}  Re4+ {[%clk 0:00:03]} 66. Kf1 {[%clk 0:00:04]}  Kg6 {[%clk 0:00:04]} 67. Rh8 {[%clk 0:00:04]}  Rf4 {[%clk 0:00:04]} 68. Kg2 {[%clk 0:00:04]}  Rg4+ {[%clk 0:00:04]} 69. Kf1 {[%clk 0:00:04]}  Rc4 {[%clk 0:00:04]} 70. Ne5+ {[%clk 0:00:03]}  Kg7 {[%clk 0:00:05]} 71. Rxh5 {[%clk 0:00:03]}  Rc2 {[%clk 0:00:04]} 72. Nd3 {[%clk 0:00:03]}  Kg6 {[%clk 0:00:04]} 73. Rxc5 {[%clk 0:00:03]}  Ra2 {[%clk 0:00:05]} 74. Rd5 {[%clk 0:00:04]}  Ra1+ {[%clk 0:00:05]} 75. Ke2 {[%clk 0:00:04]}  Ra2+ {[%clk 0:00:06]} 76. Ke3 {[%clk 0:00:05]}  Kf6 {[%clk 0:00:06]} 77. Nf4 {[%clk 0:00:06]}  Ra3+ {[%clk 0:00:06]} 78. Rd3 {[%clk 0:00:06]}  Ra1 {[%clk 0:00:07]} 79. f3 {[%clk 0:00:07]}  Kf5 {[%clk 0:00:07]} 80. Ne2 {[%clk 0:00:08]}  Kf6 {[%clk 0:00:08]} 81. Rd4 {[%clk 0:00:08]}  Ke5 {[%clk 0:00:08]} 82. Re4+ {[%clk 0:00:08]}  Kf5 {[%clk 0:00:09]} 83. Nd4+ {[%clk 0:00:08]}  Kf6 {[%clk 0:00:09]} 84. Kf4 {[%clk 0:00:08]}  Ra5 {[%clk 0:00:09]} 85. Re6+ {[%clk 0:00:09]}  Kf7 {[%clk 0:00:09]} 86. Rd6 {[%clk 0:00:09]}  Ra4 {[%clk 0:00:09]} 87. Ke5 {[%clk 0:00:09]}  Ra5+ {[%clk 0:00:09]} 88. Rd5 {[%clk 0:00:10]}  Ra6 {[%clk 0:00:10]} 89. f4 {[%clk 0:00:10]}  Rh6 {[%clk 0:00:10]} 90. Rd7+ {[%clk 0:00:10]}  Ke8 {[%clk 0:00:10]} 91. Rb7 {[%clk 0:00:10]}  Rh1 {[%clk 0:00:11]} 92. f5 {[%clk 0:00:10]}  Rh6 {[%clk 0:00:10]} 93. Ne6 {[%clk 0:00:10]}  Rh1 {[%clk 0:00:08]} 94. Kf6 {[%clk 0:00:09]}  Rh6+ {[%clk 0:00:07]} 95. Kg5 {[%clk 0:00:10]}  Rh5+ {[%clk 0:00:06]} 96. Kg4 {[%clk 0:00:09]}  Rh4+ {[%clk 0:00:06]} 97. Kf3 {[%clk 0:00:08]}  Rh3+ {[%clk 0:00:06]} 98. Ke4 {[%clk 0:00:08]}  Re3+ {[%clk 0:00:07]} 99. Kd5 {[%clk 0:00:08]}  Re5+ {[%clk 0:00:06]} 100. Kd6 {[%clk 0:00:07]}  Rd5+ {[%clk 0:00:07]} 101. Kc6 {[%clk 0:00:08]}  Rd6+ {[%clk 0:00:04]} 102. Kc7 {[%clk 0:00:08]}  Rd7+ {[%clk 0:00:03]} 103. Kc8 {[%clk 0:00:08]}  Rd1 {[%clk 0:00:02]} 104. f6 {[%clk 0:00:08]}  Rc1+ {[%clk 0:00:02]} 105. Rc7 {[%clk 0:00:08]}  Rf1 {[%clk 0:00:02]} 106. Re7# {[%clk 0:00:08]} 1-0


[Site "https://www.chess.com"]

[Event "Titled Tuesday Blitz May 4 2021"]
[White "Garcia Garcia, Alejandro"]
[Black "Ozen, Bahadir"]
[WhiteFideId "3516334"]
[BlackFideId "6337058"]
[WhiteElo "2131"]
[BlackElo "2503"]
[Result "0-1"]
[Round "06"]
[TimeControl "180+1"]
[Date "2021.05.04"]
[WhiteClock "0:00:04"]
[BlackClock "0:00:17"]

1. Nf3 {[%clk 0:03:00]}  g6 {[%clk 0:03:00]} 2. g3 {[%clk 0:03:01]}  Bg7 {[%clk 0:03:00]} 3. Bg2 {[%clk 0:03:01]}  Nf6 {[%clk 0:02:56]} 4. O-O {[%clk 0:03:01]}  O-O {[%clk 0:02:57]} 5. c4 {[%clk 0:03:01]}  d6 {[%clk 0:02:53]} 6. Nc3 {[%clk 0:03:01]}  c6 {[%clk 0:02:51]} 7. Rb1 {[%clk 0:03:00]}  d5 {[%clk 0:02:42]} 8. cxd5 {[%clk 0:02:51]}  cxd5 {[%clk 0:02:41]} 9. d4 {[%clk 0:02:50]}  Bf5 {[%clk 0:02:41]} 10. Ra1 {[%clk 0:02:49]}  Nc6 {[%clk 0:02:33]} 11. Ne5 {[%clk 0:02:49]}  Ne4 {[%clk 0:02:16]} 12. Nxc6 {[%clk 0:02:41]}  bxc6 {[%clk 0:02:03]} 13. f3 {[%clk 0:02:20]}  Nxc3 {[%clk 0:02:00]} 14. bxc3 {[%clk 0:02:20]}  Qa5 {[%clk 0:02:00]} 15. Bd2 {[%clk 0:02:11]}  Rab8 {[%clk 0:01:59]} 16. e4 {[%clk 0:02:10]}  Be6 {[%clk 0:01:56]} 17. Qc2 {[%clk 0:02:02]}  Rb6 {[%clk 0:01:39]} 18. Rab1 {[%clk 0:01:00]}  Rfb8 {[%clk 0:01:38]} 19. Rb3 {[%clk 0:00:59]}  dxe4 {[%clk 0:01:23]} 20. Rxb6 {[%clk 0:00:58]}  Qxb6 {[%clk 0:01:24]} 21. fxe4 {[%clk 0:00:57]}  Qb2 {[%clk 0:01:23]} 22. Rc1 {[%clk 0:00:56]}  Bxa2 {[%clk 0:01:15]} 23. Bf4 {[%clk 0:00:45]}  Qxc2 {[%clk 0:00:48]} 24. Rxc2 {[%clk 0:00:46]}  Rb1+ {[%clk 0:00:47]} 25. Kf2 {[%clk 0:00:46]}  Bb3 {[%clk 0:00:48]} 26. Rc1 {[%clk 0:00:44]}  Rb2+ {[%clk 0:00:46]} 27. Kg1 {[%clk 0:00:40]}  e5 {[%clk 0:00:43]} 28. dxe5 {[%clk 0:00:37]}  a5 {[%clk 0:00:43]} 29. Ra1 {[%clk 0:00:20]}  a4 {[%clk 0:00:43]} 30. Bf3 {[%clk 0:00:19]}  h6 {[%clk 0:00:36]} 31. h4 {[%clk 0:00:15]}  g5 {[%clk 0:00:36]} 32. hxg5 {[%clk 0:00:15]}  hxg5 {[%clk 0:00:37]} 33. Bxg5 {[%clk 0:00:16]}  Bxe5 {[%clk 0:00:37]} 34. Bc1 {[%clk 0:00:16]}  Rc2 {[%clk 0:00:37]} 35. Bd1 {[%clk 0:00:10]}  Rxc3 {[%clk 0:00:37]} 36. Bxb3 {[%clk 0:00:06]}  Rxb3 {[%clk 0:00:16]} 37. Rxa4 {[%clk 0:00:04]}  Rb1 {[%clk 0:00:17]} 0-1


[Site "https://www.chess.com"]

[Event "Titled Tuesday Blitz May 4 2021"]
[White "Gonzalez, Francisco Silva"]
[Black "Gritsenko, Nikolai"]
[WhiteFideId "1512285"]
[BlackFideId "14112493"]
[WhiteElo "2159"]
[BlackElo "2389"]
[Result "0-1"]
[Round "06"]
[TimeControl "180+1"]
[Date "2021.05.04"]
[WhiteClock "0:00:08"]
[BlackClock "0:00:05"]

1. d4 {[%clk 0:03:00]}  f6 {[%clk 0:02:59]} 2. e4 {[%clk 0:02:59]}  c6 {[%clk 0:02:59]} 3. d5 {[%clk 0:02:58]}  Na6 {[%clk 0:02:58]} 4. Bc4 {[%clk 0:02:57]}  b5 {[%clk 0:02:53]} 5. Bf1 {[%clk 0:02:50]}  Nc5 {[%clk 0:02:50]} 6. f3 {[%clk 0:02:48]}  a5 {[%clk 0:02:45]} 7. c4 {[%clk 0:02:47]}  b4 {[%clk 0:02:42]} 8. Be3 {[%clk 0:02:45]}  e5 {[%clk 0:02:40]} 9. Nd2 {[%clk 0:02:41]}  g6 {[%clk 0:02:23]} 10. Nh3 {[%clk 0:02:36]}  Nh6 {[%clk 0:02:21]} 11. Nf2 {[%clk 0:02:35]}  Nf7 {[%clk 0:02:19]} 12. Nd3 {[%clk 0:02:33]}  Nxd3+ {[%clk 0:02:15]} 13. Bxd3 {[%clk 0:02:32]}  c5 {[%clk 0:02:15]} 14. h4 {[%clk 0:02:29]}  d6 {[%clk 0:02:06]} 15. Nf1 {[%clk 0:02:27]}  h5 {[%clk 0:02:02]} 16. Qd2 {[%clk 0:02:27]}  Bd7 {[%clk 0:01:56]} 17. Ng3 {[%clk 0:02:26]}  Qe7 {[%clk 0:01:39]} 18. Kf2 {[%clk 0:02:22]}  Bh6 {[%clk 0:01:36]} 19. Raf1 {[%clk 0:02:17]}  Bxe3+ {[%clk 0:01:33]} 20. Qxe3 {[%clk 0:02:16]}  Kd8 {[%clk 0:01:31]} 21. Ke2 {[%clk 0:02:12]}  Kc7 {[%clk 0:01:30]} 22. Kd2 {[%clk 0:02:11]}  Rag8 {[%clk 0:01:28]} 23. Rf2 {[%clk 0:02:10]}  g5 {[%clk 0:01:25]} 24. hxg5 {[%clk 0:02:09]}  Rxg5 {[%clk 0:01:24]} 25. Ne2 {[%clk 0:01:54]}  h4 {[%clk 0:01:19]} 26. Rh2 {[%clk 0:01:52]}  f5 {[%clk 0:01:06]} 27. exf5 {[%clk 0:01:52]}  Bxf5 {[%clk 0:01:06]} 28. Bxf5 {[%clk 0:01:48]}  Rxf5 {[%clk 0:01:03]} 29. Qe4 {[%clk 0:01:48]}  Qd7 {[%clk 0:00:36]} 30. Qg4 {[%clk 0:01:43]}  Rg5 {[%clk 0:00:28]} 31. Qxd7+ {[%clk 0:01:42]}  Kxd7 {[%clk 0:00:28]} 32. Ke3 {[%clk 0:01:36]}  Nh6 {[%clk 0:00:20]} 33. Ke4 {[%clk 0:01:34]}  Nf5 {[%clk 0:00:18]} 34. Rh3 {[%clk 0:01:31]}  Ng3+ {[%clk 0:00:15]} 35. Ke3 {[%clk 0:01:26]}  Nf5+ {[%clk 0:00:13]} 36. Kd2 {[%clk 0:01:24]}  Rhg8 {[%clk 0:00:13]} 37. Rh2 {[%clk 0:01:24]}  a4 {[%clk 0:00:12]} 38. Kd3 {[%clk 0:01:19]}  Ke7 {[%clk 0:00:11]} 39. Ke4 {[%clk 0:01:16]}  Ng3+ {[%clk 0:00:11]} 40. Kd3 {[%clk 0:01:17]}  Nf5 {[%clk 0:00:11]} 41. Kd2 {[%clk 0:01:11]}  Kf6 {[%clk 0:00:10]} 42. Kd3 {[%clk 0:01:10]}  R8g7 {[%clk 0:00:09]} 43. Ke4 {[%clk 0:01:08]}  Kg6 {[%clk 0:00:08]} 44. Kd3 {[%clk 0:01:06]}  Rf7 {[%clk 0:00:08]} 45. Rf1 {[%clk 0:00:54]}  Rh7 {[%clk 0:00:08]} 46. Rf2 {[%clk 0:00:51]}  Ng3 {[%clk 0:00:08]} 47. Ke3 {[%clk 0:00:44]}  Nxe2 {[%clk 0:00:07]} 48. Kxe2 {[%clk 0:00:42]}  Rf5 {[%clk 0:00:08]} 49. Ke3 {[%clk 0:00:41]}  Rf4 {[%clk 0:00:08]} 50. b3 {[%clk 0:00:40]}  axb3 {[%clk 0:00:08]} 51. axb3 {[%clk 0:00:40]}  Ra7 {[%clk 0:00:09]} 52. Rh1 {[%clk 0:00:36]}  Ra3 {[%clk 0:00:09]} 53. Rb2 {[%clk 0:00:26]}  Rxc4 {[%clk 0:00:09]} 54. Kd2 {[%clk 0:00:27]}  Rd4+ {[%clk 0:00:07]} 55. Ke3 {[%clk 0:00:27]}  Kg5 {[%clk 0:00:08]} 56. g3 {[%clk 0:00:23]}  hxg3 {[%clk 0:00:07]} 57. Rh8 {[%clk 0:00:24]}  c4 {[%clk 0:00:07]} 58. Rg8+ {[%clk 0:00:23]}  Kf6 {[%clk 0:00:07]} 59. Rxg3 {[%clk 0:00:23]}  Rxb3+ {[%clk 0:00:07]} 60. Rxb3 {[%clk 0:00:23]}  cxb3 {[%clk 0:00:07]} 61. Rg1 {[%clk 0:00:22]}  Rc4 {[%clk 0:00:07]} 62. Rb1 {[%clk 0:00:22]}  Rc3+ {[%clk 0:00:08]} 63. Ke4 {[%clk 0:00:21]}  Ke7 {[%clk 0:00:07]} 64. f4 {[%clk 0:00:19]}  exf4 {[%clk 0:00:08]} 65. Kxf4 {[%clk 0:00:19]}  Kd7 {[%clk 0:00:08]} 66. Kf5 {[%clk 0:00:20]}  Re3 {[%clk 0:00:07]} 67. Kf6 {[%clk 0:00:19]}  Kc7 {[%clk 0:00:06]} 68. Rc1+ {[%clk 0:00:19]}  Kb6 {[%clk 0:00:05]} 69. Rc6+ {[%clk 0:00:19]}  Kb5 {[%clk 0:00:05]} 70. Rc1 {[%clk 0:00:17]}  b2 {[%clk 0:00:05]} 71. Rb1 {[%clk 0:00:17]}  Re2 {[%clk 0:00:06]} 72. Rd1 {[%clk 0:00:08]}  Ka4 {[%clk 0:00:05]} 0-1


[Site "https://www.chess.com"]

[Event "Titled Tuesday Blitz May 4 2021"]
[White "Hess, Robert"]
[Black "Xiong, Jeffery"]
[WhiteFideId "2022036"]
[BlackFideId "2047640"]
[WhiteElo "2557"]
[BlackElo "2724"]
[Result "0-1"]
[Round "06"]
[TimeControl "180+1"]
[Date "2021.05.04"]
[WhiteClock "0:00:08"]
[BlackClock "0:01:58"]

1. d4 {[%clk 0:03:00]}  Nf6 {[%clk 0:02:59]} 2. c4 {[%clk 0:03:00]}  c5 {[%clk 0:03:00]} 3. d5 {[%clk 0:02:59]}  b5 {[%clk 0:03:00]} 4. cxb5 {[%clk 0:02:59]}  a6 {[%clk 0:03:01]} 5. bxa6 {[%clk 0:02:59]}  g6 {[%clk 0:03:01]} 6. Nc3 {[%clk 0:02:59]}  Bxa6 {[%clk 0:03:02]} 7. Nf3 {[%clk 0:02:58]}  Bg7 {[%clk 0:03:01]} 8. g3 {[%clk 0:02:59]}  d6 {[%clk 0:03:01]} 9. Bg2 {[%clk 0:02:59]}  Nbd7 {[%clk 0:03:01]} 10. O-O {[%clk 0:02:59]}  O-O {[%clk 0:03:02]} 11. Re1 {[%clk 0:02:52]}  Nb6 {[%clk 0:03:01]} 12. e4 {[%clk 0:02:51]}  Nfd7 {[%clk 0:03:01]} 13. Qc2 {[%clk 0:02:31]}  Nc4 {[%clk 0:03:00]} 14. b3 {[%clk 0:02:03]}  Qa5 {[%clk 0:02:59]} 15. bxc4 {[%clk 0:01:38]}  Qxc3 {[%clk 0:02:59]} 16. Qxc3 {[%clk 0:01:33]}  Bxc3 {[%clk 0:03:00]} 17. Bg5 {[%clk 0:01:25]}  f6 {[%clk 0:02:35]} 18. Bd2 {[%clk 0:01:13]}  Bxa1 {[%clk 0:02:33]} 19. Rxa1 {[%clk 0:01:14]}  Bxc4 {[%clk 0:02:32]} 20. a4 {[%clk 0:01:14]}  Rfb8 {[%clk 0:02:31]} 21. a5 {[%clk 0:01:07]}  Rb2 {[%clk 0:02:25]} 22. Bc3 {[%clk 0:00:46]}  Rc2 {[%clk 0:02:24]} 23. Be1 {[%clk 0:00:46]}  Rb8 {[%clk 0:02:17]} 24. Bh3 {[%clk 0:00:42]}  Ne5 {[%clk 0:02:17]} 25. Nxe5 {[%clk 0:00:42]}  fxe5 {[%clk 0:02:17]} 26. a6 {[%clk 0:00:27]}  Ra2 {[%clk 0:02:00]} 27. Rxa2 {[%clk 0:00:15]}  Bxa2 {[%clk 0:02:01]} 28. Be6+ {[%clk 0:00:15]}  Kf8 {[%clk 0:02:00]} 29. Ba5 {[%clk 0:00:08]}  Ra8 {[%clk 0:01:58]} 0-1


[Site "https://www.chess.com"]